[Event "98th Caplin Hastings Masters 2024-25"]
[Site "Hastings"]
[Date "2024.12.31"]
[Round "6.13"]
[White "White, Stuart A"]
[Black "Grutter, Tim"]
[Result "0-1"]
[ECO "E62"]
[WhiteElo "2017"]
[BlackElo "2379"]
[Annotator "TA"]
[PlyCount "60"]
[EventDate "2024.12.23"]
[EventType "swiss"]
[EventCountry "ENG"]
[SourceTitle "playchess.com"]
[Source "ChessBase"]
[SourceQuality "1"]
[TimeControl "5400+30"]

{[%evp 17,60,31,23,35,37,0,1,0,0,-4,3,-43,-8,-75,-60,-72,-80,-102,-98,-114,-110,-148,-118,-105,-112,-95,-77,-81,-89,-414,-396,-478,-479,-474,-468,-751,-737,-1435,-1404,-29994,-29995,-29995,-29990,-29996,-29997]} 1. c4 {[%emt 0:00:02]} Nf6 {[%emt 0:00:14]} 2. g3 {[%emt 0:00:09]} g6 {[%emt 0:00:04]} 3. Bg2 {[%emt 1:31:49]} Bg7 {[%emt 0:00:04]} 4. Nc3 {[%emt 0:00:00]} O-O {[%emt 0:00:06]} 5. d4 {[%emt 0:00:00]} d6 {[%emt 0:00:05]} 6. h3 {[%emt 0:00:00]} e5 {[%emt 0:01:16]} 7. Nf3 {[%emt 0:00:00]} Nc6 {[%emt 0:00:42]} 8. Be3 {[%emt 0:00:00]} Nd7 {[%emt 0:08:19]} 9. O-O {[%emt 0:00:00]} h6 {[%emt 0:03:23]} 10. Qd2 {[%emt 0:00:00]} Kh7 {[%emt 0:01:01]} 11. Rfd1 {[%emt 0:00:00]} f5 {[%emt 0:02:25]} 12. Rac1 {[%emt 0:00:00]} e4 {[%emt 0:01:33]} 13. Ne1 {[%emt 0:00:00]} Nf6 {[%emt 0:02:44]} 14. f4 {[%emt 0:00:00]} (14. Nc2 $11 {is more appropriate.}) 14... exf3 {[%emt 0:06:24]} 15. Bxf3 {[%emt 0:00:00] [#]} (15. Nxf3 $11 Re8 16. Bf2) 15... f4 $1 $17 {[%emt 0:03:21]} 16. Bxf4 {[%emt 0:00:00]} (16. gxf4 Bxh3) 16... Bxh3 {[%emt 0:00:36]} 17. Nc2 {[%emt 0:00:00]} Qd7 {[%emt 0:02:59]} 18. Ne4 {[%emt 0:00:00]} Rae8 {[%emt 0:03:57]} 19. Nf2 {[%emt 0:00:00]} Bf5 {[%emt 0:00:56] Repels Qd3} 20. d5 {[%emt 0:00:00]} Ne5 {[%emt 0:02:33] Black is more active.} 21. Nd4 {[%emt 0:00:00]} Nxf3+ {[%emt 0:02:53]} 22. exf3 {[%emt 0:00:00]} Nh5 {[%emt 0:00:56] Threatens to win with ...g5.} 23. Ne2 $2 {[%emt 0:00:00][%mdl 8192]} (23. Kg2 $17 {is more resistant.}) 23... g5 $19 {[%emt 0:02:02]} 24. g4 {[%emt 0:00:00]} Rxe2 {[%emt 0:01:01]} ({Weaker is} 24... Nxf4 25. Nxf4 Bxg4 26. c5 $19) 25. Qxe2 {[%emt 0:00:00]} Nxf4 {[%emt 0:00:04]} 26. Qe3 {[%emt 0:00:00]} (26. Qd2 $142 Bg6 27. Re1) 26... Re8 {[%emt 0:00:54]} 27. Ne4 {[%emt 0:00:00]} Bxe4 {[%emt 0:00:12]} 28. fxe4 {[%emt 0:00:00]} Qxg4+ {[%emt 0:00:06]} 29. Kf1 {[%emt 0:00:00]} Qg2+ {[%emt 0:00:08]} 30. Ke1 {[%emt 0:00:00]} Rxe4 {[%emt 0:00:55]} 0-1

[Event "98th Caplin Hastings Masters 2024-25"]
[Site "Hastings"]
[Date "2024.12.31"]
[Round "6.14"]
[White "Malinovskii, Ilia"]
[Black "Roux, Baptiste"]
[Result "1/2-1/2"]
[ECO "B22"]
[WhiteElo "2003"]
[BlackElo "2338"]
[Annotator "TA"]
[PlyCount "223"]
[EventDate "2024.12.23"]
[EventType "swiss"]
[EventCountry "ENG"]
[SourceTitle "playchess.com"]
[Source "ChessBase"]
[SourceQuality "1"]
[TimeControl "5400+30"]

{[%evp 19,223,-21,27,-12,7,-20,-15,-15,-12,-37,-18,-25,-24,-33,-4,-5,-6,-29,-35,-81,-30,-32,-34,-41,-31,-127,-104,-121,-120,-116,-118,-123,-118,-273,-299,-301,-231,-220,-108,-120,-62,-177,-168,-259,-247,-230,-235,-280,-270,-380,-379,-439,-430,-670,-643,-538,-192,-720,-766,-765,-731,-742,-631,-795,-779,-877,-472,-922,-907,-886,-901,-1025,-1025,-977,-940,-29972,-238,-238,0,0,0,0,0,0,0,0,0,0,0,0,0,0,0,0,74,74,77,77,77,80,87,48,61,48,1815,1815,919,35,226,36,29979,29980,29980,29981,29981,29973,29972,29974,29971,29972,29946,29970,29962,29969,5297,87,343,315,302,0,276,276,276,0,0,0,0,0,0,0,0,0,0,0,0,0,0,0,0,0,0,0,0,0,0,0,0,0,0,0,0,0,0,0,0,0,0,0,0,0,0,0,0,0,0,0,0,0,0,0,0,0,0,0,0,13,161,0,0,0,0,0,0,0,0,0,0,0,0,0,0,0,0,0,0,0]} 1. e4 {[%emt 0:00:05][%cal Be2e4,Be4e5][%mdl 32]} c5 {[%emt 0:07:09]} 2. c3 {[%emt 0:00:09]} Nf6 {[%emt 0:00:24]} 3. e5 {[%emt 0:00:06]} Nd5 {[%emt 0:00:05]} 4. Nf3 {[%emt 0:00:06]} e6 {[%emt 0:03:02]} 5. d4 {[%emt 0:00:32]} cxd4 {[%emt 0:00:07]} 6. cxd4 {[%emt 0:00:05]} b6 {[%emt 0:06:32]} 7. Nc3 {[%emt 0:02:37]} Nxc3 {[%emt 0:00:34]} 8. bxc3 {[%emt 0:00:06]} Qc7 {[%emt 0:01:30]} 9. Bd2 {[%emt 0:01:01]} d6 {[%emt 0:05:37]} 10. Bd3 {[%emt 0:01:33]} Nd7 {[%emt 0:02:28]} (10... Bb7 $142 $1) 11. O-O {[%emt 0:05:22]} Be7 {[%emt 0:03:13]} 12. Qe2 {[%emt 0:11:01]} Bb7 {[%emt 0:09:05]} 13. Bf4 {[%emt 0:06:32]} O-O {[%emt 0:05:31]} 14. Rfc1 {[%emt 0:04:28]} dxe5 {[%emt 0:13:19]} 15. Nxe5 {[%emt 0:03:46][%cal Od3h7] Bxh7+! would now be deadly.} Bd6 {[%emt 0:00:29]} 16. Nxd7 {[%emt 0:12:28]} Qxd7 {[%emt 0:00:13]} (16... Bxf4 $5 17. Nxf8 Bxc1 18. Rxc1 (18. Nxh7 $2 Qxc3 19. Rb1 Rd8 $19) (18. Bxh7+ Kxf8 19. Rxc1 g6 $17) 18... Rxf8 $11) 17. Bxd6 {[%emt 0:00:22]} Qxd6 {[%emt 0:00:06]} 18. f3 {[%emt 0:02:15]} Rac8 {[%emt 0:01:30]} 19. Be4 {[%emt 0:05:18]} (19. a4 $15) 19... Bd5 {[%emt 0:05:24]} (19... Bxe4 $17 20. fxe4 Rc7) 20. a4 $11 {[%emt 0:08:18]} Rc7 {[%emt 0:03:00]} 21. a5 {[%emt 0:09:14]} Bc4 {[%emt 0:01:28]} 22. Bd3 {[%emt 0:00:46]} (22. Qe1 $15) 22... b5 $17 {[%emt 0:00:34]} 23. Bxc4 {[%emt 0:01:25]} Rxc4 {[%emt 0:00:09]} (23... bxc4 24. Rcb1 $14) 24. a6 {[%emt 0:03:39]} Rfc8 {[%emt 0:02:53][%cal Ob5b4]} 25. Rd1 {[%emt 0:06:30]} Qb6 {[%emt 0:05:06]} 26. Kh1 $2 {[%emt 0:02:37]} (26. Rab1 $17 {was called for.}) 26... Rxc3 $19 {[%emt 0:00:45]} 27. d5 {[%emt 0:00:17]} Rc2 {[%emt 0:03:06]} 28. Qd3 {[%emt 0:01:23]} Qf2 {[%emt 0:03:40]} (28... exd5 $19 {...b4 is the strong threat.} 29. Qxd5 h6) 29. Rg1 $17 {[%emt 0:00:12]} exd5 {[%emt 0:07:52]} (29... R2c4 $17 {Threatens to win with ...Rd8.} 30. dxe6 fxe6) 30. Qxd5 {[%emt 0:03:10]} ({White should play} 30. Qxb5 $15 Qc5 31. Qd7) 30... Qb6 $36 {[%emt 0:04:00][%mdl 2048] White is under strong pressure.} 31. Qb7 {[%emt 0:03:35]} (31. Rge1 {keeps fighting.}) 31... Rb8 {[%emt 0:01:44]} 32. Qe4 {[%emt 0:04:48]} Rc4 {[%emt 0:00:21]} 33. Qd5 {[%emt 0:00:28]} Rc5 {[%emt 0:01:37]} 34. Qe4 {[%emt 0:00:29]} (34. Qd7 $142) 34... b4 {[%emt 0:00:37]} 35. Rge1 {[%emt 0:01:03][%cal Oe4e8]} g6 {[%emt 0:00:41]} 36. Qd4 {[%emt 0:00:55]} (36. Rab1 $142 b3 (36... Qxa6 37. Rxb4 Rxb4 38. Qxb4 $17) 37. Qf4) 36... b3 {[%emt 0:00:59]} 37. Rab1 {[%emt 0:00:06][%cal Ob1b3] [#]} Rc1 $2 {[%emt 0:01:51]} 38. Qb2 {[%emt 0:00:19]} (38. Qxb6 Rxe1+ 39. Qg1 Rxg1+ 40. Kxg1) 38... Rc2 {[%emt 0:00:52]} 39. Qe5 {[%emt 0:01:09]} b2 {[%emt 0:00:05][%cal Ob8c8]} 40. h4 {[%emt 0:00:51]} h5 {[%emt 0:00:49]} 41. Qf4 {[%emt 0:00:34]} Rbc8 {[%emt 0:01:20][%cal Ob6f2]} 42. Re7 {[%emt 0:00:48]} Qb3 {[%emt 0:00:57]} (42... Qxa6 43. Qxf7+ Kh8 44. Qh7#) 43. Rb7 {[%emt 0:00:26]} (43. Kh2 $142 Qa2 44. Qf6) 43... Qa2 {[%emt 0:00:26][%csl LRa6,LRb1]} 44. Kh2 {[%emt 0:00:32]} Rf8 {[%emt 0:00:08]} (44... Qxb1 45. Qxf7+ Kh8 46. Qh7#) 45. Re1 {[%emt 0:00:51] [#]} Rxg2+ $3 {[%emt 0:00:36][%mdl 512]} 46. Kh3 {[%emt 0:00:13]} Rc2 {[%emt 0:00:54]} 47. Qf6 {[%emt 0:00:32]} Rc1 $2 {[%emt 0:00:38]} (47... b1=Q {mates} 48. Rbxb1 Rh2+ 49. Kg3 Qf2+ 50. Kf4 Rg2 (50... Qxh4+ $2 51. Qxh4 Rxh4+ 52. Kg3 $19) 51. Ke5 Re8+ 52. Kd6 Qg3+ (52... Rxe1 53. Rb8+) (52... Qxe1 $2 53. Rxe1 Rxe1 54. Qd8+ Kg7 55. Kc7 $19) 53. Kd7 Rxe1 54. Qg5 Qh3+ (54... Rxb1 55. Qxg3 Rxg3 56. Kd6 Rxf3 57. Kd5 f6 58. Kd4 Rc1 59. Ke4 Rfc3 60. Kf4 Rf1+ 61. Ke4 Rd1 62. Kf4 Rd4#) 55. Qg4 Rxg4 (55... hxg4 56. Rxe1 g3+ 57. Kc7 Rc2+ 58. Kd6 Rd2+ 59. Kc7 Qd7+ 60. Kb8 Qd8+ 61. Kb7 Qb6+ 62. Kc8 Rd8#) (55... Rd2+ 56. Kc7 Qh2+ 57. f4 Rc2+ 58. Kd8 Qd2+ 59. Qd7 Qa5+ 60. Rb6 Qxb6+ 61. Qc7 Qxc7#) 56. fxg4 Rxb1 (56... Qxg4+ 57. Kd6 Qd4+ 58. Kc6 Rxb1 59. Kc7 Qc4+ 60. Kd7 Rd1+ 61. Ke8 Qe6#) 57. Kd6 Qd3+ (57... Qxg4 58. Kd5 Rd1+ 59. Kc5 Qd4+ 60. Kb5 Rc1 61. Ka5 Rc5#) 58. Kc5 Rc1+ (58... Qxa6 59. g5 Qb5+ 60. Kd4 Rb3 61. Ke4 Qc5 62. Kf4 Qf5#) 59. Kb4 Rc4+ 60. Kb5 Qd5#) 48. Rxb2 {[%emt 0:00:29]} Qa1 {[%emt 0:00:27]} (48... Rxe1 $2 49. Rxa2 Re6 50. Qd4 $18) (48... Qxb2 $19 49. Qxb2 Rxe1) 49. Rxc1 $11 {[%emt 0:00:11]} Qxc1 {[%emt 0:01:07][%mdl 4096] Endgame. KQR-KQR} 50. Rb7 {[%emt 0:00:17] Active counter play!} Qd1 {[%emt 0:00:00]} 51. Kg3 {[%emt 0:00:21]} Qg1+ {[%emt 0:00:02]} 52. Kf4 {[%emt 0:00:50]} Qc1+ {[%emt 0:00:49]} 53. Kg3 {[%emt 0:00:06]} Qc8 {[%emt 0:00:30]} 54. Kf4 {[%emt 0:00:21][%cal Of4g5]} Qc5 {[%emt 0:00:34]} 55. Kg3 {[%emt 0:00:33]} Qc8 {[%emt 0:00:08]} 56. Kf4 {[%emt 0:00:40][%cal Of4g5]} Qc4+ {[%emt 0:00:04]} (56... Qc5 $11) 57. Kg5 $16 {[%emt 0:01:07][%cal Og5h6]} Kh7 {[%emt 0:00:06] aiming for ...Qc1+.} 58. Qxg6+ {[%emt 0:00:13]} Kh8 {[%emt 0:00:09]} 59. Qf6+ {[%emt 0:00:25]} (59. Qxh5+ Kg8 $11) 59... Kh7 {[%emt 0:00:39]} 60. Qh6+ {[%emt 0:00:57]} ({Of course not} 60. Kxh5 $6 Qd5+ 61. Kg4 Rg8+ 62. Kf4 (62. Kh3 Rg7 $11) 62... Qd2+ 63. Ke4 Qe2+ 64. Kf4 Qc4+ 65. Kf5 Qc2+ 66. Kf4 Qd2+ 67. Ke4 Qe2+ 68. Kf4 Qd2+ $11) 60... Kg8 {[%emt 0:00:01] ( -> ...Qc5+)} 61. Kxh5 {[%emt 0:00:08]} Rc8 $2 {[%emt 0:01:03][%mdl 8192]} (61... Qc3 $14 62. Qg5+ (62. Rxa7 {leads to mate.} Qxf3+ 63. Kg5 f6+ 64. Kg6 Qe4+ 65. Kh5 Qf5+) 62... Kh8) 62. Qg5+ $18 {[%emt 0:00:44]} (62. Rxa7 $2 {is the wrong capture.} Rc5+ $19) 62... Kf8 {[%emt 0:01:32]} 63. Rb5 $2 {[%emt 0:00:41]} (63. Qf6 $18 {[%cal Rf6h8]} Kg8 64. Rxa7 Qc5+ 65. Qg5+ Qxg5+ 66. hxg5) 63... Qd4 $2 {[%emt 0:00:51]} (63... Qc6 $14) 64. Re5 $2 {[%emt 0:00:46]} ({Better is} 64. Rd5 $18 Qb6 65. f4) 64... Rc6 $2 {[%emt 0:00:24][%mdl 8192]} (64... Qd6 $14) 65. Qe7+ {[%emt 0:00:09]} Kg8 {[%emt 0:00:33]} 66. Rg5+ {[%emt 0:00:23]} Rg6 {[%emt 0:00:24]} 67. Qe8+ {[%emt 0:00:29]} Kg7 {[%emt 0:00:09]} 68. Rxg6+ {[%emt 0:00:07]} fxg6+ {[%emt 0:00:04]} 69. Qxg6+ {[%emt 0:00:05] KQ-KQ} Kh8 {[%emt 0:00:24]} 70. Qe8+ {[%emt 0:00:26]} Kg7 {[%emt 0:00:06]} 71. Qe7+ {[%emt 0:00:50]} Kh8 {[%emt 0:00:34]} 72. Qb7 $2 {[%emt 0:00:56]} (72. Qf8+ $18 Kh7 73. Qf5+ Kh8 74. f4) 72... Qc5+ $2 {[%emt 0:01:11][%mdl 8192]} (72... Qe5+ $16 73. Kg6 Qe6+ 74. Kg5 Qe5+ 75. Kg4 Qe6+ 76. Kf4 Qf6+ 77. Ke3 Qe6+ 78. Kf2 Qa2+ 79. Kg3 Qg8+ 80. Kf4 Qf8+ 81. Ke5 Qe8+ 82. Kd4 Qf7) 73. Kg6 {[%emt 0:00:40][%csl Gg6][%cal Rb7g7]} Qd6+ {[%emt 0:00:48] [#]} 74. Kf7 $2 {[%emt 0:00:21]} (74. Kf5 $1 $18) 74... Qf4+ $2 {[%emt 0:00:37][%mdl 8192]} (74... Qf8+ $1 $11 {and Black has nothing to worry.} 75. Kg6 Qd6+ 76. Kf5 Qd3+ 77. Kg5 Qd8+ 78. Kf5 Qf8+ 79. Ke4 Qe8+ 80. Kd4 Qf7) 75. Ke6 {[%emt 0:00:20]} Qh6+ {[%emt 0:00:47]} 76. Kd7 $2 {[%emt 0:00:41]} (76. Ke5 $18 Qh5+ 77. Kd6 Qg6+ 78. Kc5 Qc2+ 79. Kd4 Qf2+ 80. Kd3) 76... Qg7+ $1 $11 {[%emt 0:00:12]} 77. Kc8 {[%emt 0:00:19]} (77. Kd6 $5 Qf6+ $8 78. Kc5 Qc3+ 79. Kd6 Qf6+ 80. Kd5 Qxf3+ 81. Kd4 Qf4+ 82. Kd3 $11) 77... Qf8+ {[%emt 0:00:07]} 78. Kc7 {[%emt 0:00:07][%cal Ob7b8]} Qf4+ {[%emt 0:00:03]} 79. Kd7 {[%emt 0:00:35]} Qf7+ {[%emt 0:00:18]} 80. Kd6 {[%emt 0:00:23]} Qf6+ {[%emt 0:00:26]} 81. Kc5 {[%emt 0:00:19]} Qc3+ {[%emt 0:00:08]} 82. Kd6 {[%emt 0:01:47]} Qf6+ {[%emt 0:00:08]} 83. Kd5 {[%emt 0:00:15]} (83. Kc5 $5 Qc3+ $8 84. Kd6 Qf6+ $11) 83... Qxf3+ {[%emt 0:00:12]} 84. Kd4 {[%emt 0:00:33]} Qf4+ {[%emt 0:01:42]} 85. Kc3 {[%emt 0:00:09] Qa8+ would kill now.} Qg3+ {[%emt 0:00:48]} 86. Kb2 {[%emt 0:00:10] Black must now prevent Qa8+.} Qe5+ {[%emt 0:00:44]} 87. Ka3 {[%emt 0:00:33][%cal Ob7b2] Hoping for Qb2!} Qa1+ {[%emt 0:00:36]} 88. Kb4 {[%emt 0:00:39]} Qd4+ {[%emt 0:00:36]} 89. Kb3 {[%emt 0:00:10]} Qd1+ {[%emt 0:00:40]} 90. Kb2 {[%emt 0:01:14]} Qd4+ {[%emt 0:00:16]} 91. Kc2 {[%emt 0:00:43] White threatens Qb2 and mate.} Qf2+ {[%emt 0:00:33]} 92. Kb3 {[%emt 0:00:31]} Qf7+ {[%emt 0:00:59]} 93. Ka3 {[%emt 0:00:25]} Qf8+ {[%emt 0:00:30]} 94. Qb4 {[%emt 0:00:08]} Qf3+ {[%emt 0:00:20]} 95. Qb3 {[%emt 0:01:02]} Qf8+ {[%emt 0:00:09]} 96. Ka2 {[%emt 0:00:07]} Qc5 {[%emt 0:00:26]} 97. Qb2+ {[%emt 0:00:39]} Kh7 {[%emt 0:00:26]} 98. Qf6 {[%emt 0:00:41]} Qc4+ {[%emt 0:01:06]} 99. Ka3 {[%emt 0:00:17]} Qc5+ {[%emt 0:00:27]} 100. Kb3 {[%emt 0:00:15]} Qe3+ {[%emt 0:00:23]} 101. Kc4 {[%emt 0:00:12]} Qe2+ {[%emt 0:00:26]} 102. Kc5 {[%emt 0:00:45]} Qe3+ {[%emt 0:00:27]} (102... Kg8 $11) 103. Kd5 $2 {[%emt 0:00:31]} (103. Qd4 $18 Qe8 104. Qd3+ Kh8 105. Qd6) 103... Qd3+ {[%emt 0:00:19] The position is equal.} 104. Ke5 {[%emt 0:00:36]} Qc3+ {[%emt 0:00:17]} 105. Kf5 {[%emt 0:00:32]} Qd3+ {[%emt 0:01:00]} 106. Kg4 {[%emt 0:00:54]} Qe2+ {[%emt 0:00:41]} 107. Kg5 {[%emt 0:00:30] Threatening mate with Qf7+.} Qg2+ {[%emt 0:00:26]} 108. Kf4 $1 {[%emt 0:00:31]} Qf2+ {[%emt 0:00:30]} 109. Ke5 {[%emt 0:00:20]} Qe2+ {[%emt 0:00:17]} 110. Kf5 {[%emt 0:00:24] White wants to mate with Qg6+.} Qd3+ {[%emt 0:00:36]} 111. Kg5 {[%emt 0:00:23] Intending Qf5+ and mate.} Qe3+ {[%emt 0:00:42]} 112. Kf5 {[%emt 0:00:50] What a bad dream for Black.   Weighted Error Value: White=0.64/Black=0.56.  Loses game:     	---       	Black=3      Missed win:     	White=3     	---        Mistake:       	White=7     	Black=5      Inaccurate:     	White=1     	Black=1      OK:         	White=21    	Black=28     Best:        	White=10    	Black=11     Strong:       	White=1     	Black=1} 1/2-1/2

[Event "98th Caplin Hastings Masters 2024-25"]
[Site "Hastings"]
[Date "2024.12.31"]
[Round "6.15"]
[White "Struck, Lasse"]
[Black "Lux, Hugo de Melo"]
[Result "0-1"]
[ECO "A62"]
[WhiteElo "1983"]
[BlackElo "2327"]
[Annotator "TA"]
[PlyCount "60"]
[EventDate "2024.12.23"]
[EventType "swiss"]
[EventCountry "ENG"]
[SourceTitle "playchess.com"]
[Source "ChessBase"]
[SourceQuality "1"]
[TimeControl "5400+30"]

{[%evp 21,60,0,0,0,0,0,0,0,0,0,0,-20,0,-66,-30,-70,-74,-141,-130,-138,-144,-146,-106,-153,-148,-192,-181,-191,-170,-248,-277,-295,-278,-287,-269,-255,-270,-533,-537,-1615,-801]} 1. d4 {[%emt 0:00:03]} Nf6 {[%emt 0:06:33]} 2. c4 {[%emt 0:00:40]} e6 {[%emt 0:00:04]} 3. g3 {[%emt 0:00:10]} c5 {[%emt 0:00:27]} 4. d5 {[%emt 0:00:11]} d6 {[%emt 0:00:13]} 5. Nc3 {[%emt 0:00:43]} exd5 {[%emt 0:00:04]} 6. cxd5 {[%emt 0:00:07]} g6 {[%emt 0:00:07]} 7. Bg2 {[%emt 0:00:09]} Bg7 {[%emt 0:00:05]} 8. Nf3 {[%emt 0:00:07]} O-O {[%emt 0:00:05]} 9. O-O {[%emt 0:00:07]} Re8 {[%emt 0:00:02]} 10. Bf4 {[%emt 0:00:26]} Ne4 {[%emt 0:00:44]} 11. Nxe4 {[%emt 0:00:14]} Rxe4 {[%emt 0:00:01]} 12. Nd2 {[%emt 0:00:22]} Rxf4 {[%emt 0:00:04]} 13. gxf4 {[%emt 0:00:06]} Bxb2 {[%emt 0:00:04]} 14. Rb1 {[%emt 0:02:24] The position is equal.} Bg7 {[%emt 0:00:06][%cal Bb2g7,Bg7h6,Bh6f4][%mdl 32]} 15. Nc4 {[%emt 0:00:38]} Na6 {[%emt 0:00:07]} 16. e4 {[%emt 0:10:48]} Rb8 $1 {[%emt 0:00:13][%mdl 1024] Black has compensation.} 17. Qd2 {[%emt 0:01:25]} (17. e5 $11 dxe5 18. fxe5) 17... b5 {[%emt 0:07:33]} 18. Na5 {[%emt 0:08:50] [#] Strongly threatening Nc6.} Bh6 $1 {[%emt 0:08:26]} 19. Nc6 {[%emt 0:09:17]} ({White should play} 19. Rb3 Qh4 20. Rf3) 19... Qh4 $17 {[%emt 0:01:24]} 20. Qc3 {[%emt 0:01:26] Inhibits Bxf4.} (20. Nxb8 $2 Bxf4 $19) 20... Bxf4 {[%emt 0:01:23][%csl Gf4][%cal Rh4h2]} 21. h3 {[%emt 0:00:09]} Rb7 {[%emt 0:03:53]} 22. Rfd1 {[%emt 0:08:40]} ({White should try} 22. Rfe1) 22... Nb8 $40 {[%emt 0:22:02][%mdl 128] Black wants a kill.} 23. e5 {[%emt 0:21:45]} b4 {[%emt 0:10:23]} 24. Qf3 {[%emt 0:01:42]} Bf5 {[%emt 0:03:21]} ({Stronger than} 24... Bxe5 25. Nxe5 dxe5 26. d6 $11) (24... dxe5 25. d6 Bf5 26. Nxe5 Bxe5 27. Qxb7 $11) 25. e6 {[%emt 0:07:50]} (25. Rbc1 $142 Bxc1 26. Rxc1) 25... fxe6 $19 {[%emt 0:02:26]} 26. dxe6 {[%emt 0:00:28] [#]} Nxc6 {[%emt 0:00:15]} ({Inferior is} 26... Bxe6 27. Nd8 Qxd8 (27... Re7 $2 28. Nxe6 Rxe6 29. Qd5 $18) 28. Qxb7 $14) 27. Qxc6 {[%emt 0:00:25] Threatens to win with Qc8+.} Re7 {[%emt 0:00:04][%cal Of5h3]} 28. Rb3 {[%emt 0:04:08]} Bxe6 {[%emt 0:06:34][%cal Og8g7] A strong pair of Bishops.} 29. Rf3 $2 {[%emt 0:00:16]} (29. Bd5) 29... Bxa2 {[%emt 0:01:01]} 30. Rxd6 {[%emt 0:00:15]} Re1+ {[%emt 0:04:15] Weighted Error Value: White=0.76/Black=0.05 (flawless) .  Mistake:       	White=5     	---        Inaccurate:     	White=2     	Black=1      OK:         	White=4     	Black=12     Best:        	---       	Black=3      Strong:       	---       	Black=2} 0-1

[Event "98th Caplin Hastings Masters 2024-25"]
[Site "Hastings"]
[Date "2024.12.31"]
[Round "6.16"]
[White "Boswell, Jacob Connor"]
[Black "Abrahams, Daniel"]
[Result "1/2-1/2"]
[ECO "D37"]
[WhiteElo "2277"]
[BlackElo "2072"]
[Annotator "TA"]
[PlyCount "40"]
[EventDate "2024.12.23"]
[EventType "swiss"]
[EventCountry "ENG"]
[SourceTitle "playchess.com"]
[Source "ChessBase"]
[SourceQuality "1"]
[TimeControl "5400+30"]

{[%evp 11,40,11,16,8,10,10,12,0,0,0,0,0,0,-14,0,0,3,0,0,0,6,0,0,-18,0,0,17,6,39,33,39]} 1. d4 {[%emt 0:00:02]} Nf6 {[%emt 0:00:06]} 2. c4 {[%emt 0:00:05]} e6 {[%emt 0:00:03]} 3. Nf3 {[%emt 0:00:07]} d5 {[%emt 0:00:22]} 4. Nc3 {[%emt 0:00:06]} Be7 {[%emt 0:00:07]} 5. Bf4 {[%emt 0:00:07]} O-O {[%emt 0:00:08]} 6. e3 {[%emt 0:00:05]} Nbd7 {[%emt 0:00:07]} 7. c5 {[%emt 0:00:40]} c6 {[%emt 0:00:06]} 8. b4 {[%emt 0:00:53]} b6 {[%emt 0:00:07]} 9. h4 {[%emt 0:00:35]} a5 {[%emt 0:01:13]} 10. a3 {[%emt 0:00:14]} Ba6 {[%emt 0:00:10]} 11. Bxa6 {[%emt 0:02:15]} Rxa6 {[%emt 0:00:06]} 12. Qe2 {[%emt 0:01:08]} Qc8 {[%emt 0:02:09] aiming for ...axb4.} 13. O-O {[%emt 0:01:31]} Qb7 {[%emt 0:00:16]} 14. Rfc1 {[%emt 0:11:12]} axb4 {[%emt 0:07:05]} 15. axb4 {[%emt 0:00:13]} Rfa8 {[%emt 0:02:02]} 16. Qf1 {[%emt 0:13:00]} b5 {[%emt 0:04:20]} 17. Rxa6 {[%emt 0:12:02]} Rxa6 {[%emt 0:01:17]} 18. Ra1 {[%emt 0:07:19]} Bd8 {[%emt 0:00:05]} 19. Qb1 {[%emt 0:03:50]} Ne8 {[%emt 0:02:38]} 20. Ra2 {[%emt 0:03:50]} Bc7 {[%emt 0:00:22]} 1/2-1/2

[Event "98th Caplin Hastings Masters 2024-25"]
[Site "Hastings"]
[Date "2024.12.31"]
[Round "6.17"]
[White "Li, Jack"]
[Black "Pick, Freddie"]
[Result "1-0"]
[ECO "B33"]
[WhiteElo "1717"]
[BlackElo "1874"]
[Annotator "NA RC"]
[PlyCount "109"]
[EventDate "2024.12.23"]
[EventType "swiss"]
[EventCountry "ENG"]
[SourceTitle "playchess.com"]
[Source "ChessBase"]
[SourceQuality "1"]
[TimeControl "5400+30"]

1. e4 {[%emt 0:00:02]} c5 {[%emt 0:00:05]} 2. Nf3 {[%emt 0:00:04]} Nc6 {[%emt 0:00:03]} 3. d4 {[%emt 0:00:04]} cxd4 {[%emt 0:00:03]} 4. Nxd4 {[%emt 0:00:03]} Nf6 {[%emt 0:00:06]} 5. Nc3 {[%emt 1:32:47]} e5 {[%emt 0:00:18]} 6. Ndb5 {[%emt 0:00:30]} d6 {[%emt 0:00:06]} 7. Bg5 {[%emt 0:00:00]} a6 {[%emt 0:00:05]} 8. Na3 {[%emt 0:00:00]} b5 {[%emt 0:00:05]} 9. Nd5 {[%emt 0:00:00]} Be7 {[%emt 0:00:03]} 10. Bxf6 {[%emt 0:00:00]} Bxf6 {[%emt 0:00:05]} 11. c3 {[%emt 0:00:00]} O-O {[%emt 0:00:06]} 12. Nc2 {[%emt 0:00:00]} Bg5 {[%emt 0:00:04]} 13. a4 {[%emt 0:00:00]} bxa4 {[%emt 0:00:05]} 14. Rxa4 {[%emt 0:00:00]} a5 {[%emt 0:00:05]} 15. Bc4 {[%emt 0:00:00]} Rb8 {[%emt 0:00:04]} 16. b3 {[%emt 0:00:00]} Kh8 {[%emt 0:00:03]} 17. Nce3 {[%emt 0:00:00]} g6 {[%emt 0:00:37]} 18. h4 {[%emt 0:00:00]} Bxe3 {[%emt 0:10:47]} 19. Nxe3 {[%emt 0:00:00]} Kg7 {[%emt 0:04:40]} 20. h5 {[%emt 0:00:00]} Be6 {[%emt 0:01:57]} 21. Qd2 {[%emt 0:00:00]} g5 {[%emt 0:09:52]} 22. h6+ {[%emt 0:00:00]} Kh8 {[%emt 0:00:22]} 23. Nd5 {[%emt 0:00:00]} f6 {[%emt 0:12:31]} 24. g3 {[%emt 0:00:00]} Ne7 {[%emt 0:03:34]} 25. O-O {[%emt 0:00:00]} Nxd5 {[%emt 0:03:27]} 26. Bxd5 {[%emt 0:00:00]} Bxd5 {[%emt 0:00:23]} 27. Qxd5 {[%emt 0:00:00]} Qb6 {[%emt 0:02:30]} 28. Rxa5 {[%emt 0:00:00]} Qxb3 {[%emt 0:02:45]} 29. Qxd6 {[%emt 0:00:00]} Qf7 {[%emt 0:08:54]} 30. Rfa1 {[%emt 0:00:00]} Qg6 {[%emt 0:04:37]} 31. Qd5 {[%emt 0:00:00]} Qxh6 {[%emt 0:04:00]} 32. Ra8 {[%emt 0:00:00]} Qg7 {[%emt 0:06:25]} 33. Rxb8 {[%emt 0:00:00]} Rxb8 {[%emt 0:00:04]} 34. Ra8 {[%emt 0:00:00]} Rxa8 {[%emt 0:01:17]} 35. Qxa8+ {[%emt 0:00:00]} Qg8 {[%emt 0:00:05]} 36. Qxg8+ {[%emt 0:00:00]} Kxg8 {[%emt 0:00:05]} 37. g4 {[%emt 0:00:00]} Kf7 {[%emt 0:01:39]} 38. Kf1 {[%emt 0:00:00]} Ke6 {[%emt 0:00:30]} 39. Ke2 {[%emt 0:00:00]} Kd6 {[%emt 0:00:26]} 40. Kd3 {[%emt 0:00:00]} Kc5 {[%emt 0:00:10]} 41. Kd2 {[%emt 0:00:27]} Kb5 {[%emt 0:02:01]} 42. Kc2 {[%emt 0:00:06]} Kc4 {[%emt 0:00:48]} 43. f3 {[%emt 0:00:40]} h6 {[%emt 0:01:04]} 44. Kb2 {[%emt 0:01:40]} Kd3 {[%emt 0:01:40]} 45. Kb3 {[%emt 0:00:04]} Ke3 {[%emt 0:00:11]} 46. c4 {[%emt 0:00:03]} Kxf3 {[%emt 0:00:32]} 47. c5 {[%emt 0:00:03]} Kxe4 {[%emt 0:01:30]} 48. c6 {[%emt 0:00:04]} Kf4 {[%emt 0:00:04]} 49. c7 {[%emt 0:00:04]} Kxg4 {[%emt 0:00:04]} 50. c8=Q+ {[%emt 0:00:06]} f5 {[%emt 0:00:10]} 51. Kc3 {[%emt 0:00:30]} h5 {[%emt 0:02:18]} 52. Kd2 {[%emt 0:01:17]} Kf4 {[%emt 0:01:23]} 53. Ke2 {[%emt 0:00:18]} g4 {[%emt 0:01:06]} 54. Kf2 {[%emt 0:00:18]} h4 {[%emt 0:01:07]} 55. Qc1+ {[%emt 0:01:04]} 1-0